fUSD/lending_fUSD_20240116
["ID","MTS","AMOUNT","RATE_DAILY","PERIOD"]
[311796204,1705404631924,-19412.04391326,0.00022188,2]
[311796205,1705404631935,-1712.57262717,0.00022188,2]
[311796235,1705404637729,-440.7,0.00022188,2]
[311796236,1705404637741,-784.13980538,0.00022188,2]
[311796237,1705404637825,-394.14575585,0.00022188,2]
[311796238,1705404637861,-863.10512,0.00022188,2]
[311796239,1705404638017,-360.72,0.00022188,2]
[311796249,1705404641542,-1509.24543953,0.00022188,2]
[311796250,1705404641559,-1621.23272915,0.00022188,2]
[311796251,1705404641571,-782.95727085,0.00022188,2]
[311796252,1705404641820,-251.96241439,0.00022188,2]
[311796253,1705404641833,-492.69162393,0.00022188,2]
[311796254,1705404641844,-459.816,0.00022188,2]
[311796255,1705404641934,-30921.4044981,0.00022188,2]
[311796256,1705404641946,-539.7997999,0.00022188,2]
[311796257,1705404641975,-265.1286,0.00022188,2]
[311796268,1705404642772,-415.82713543,0.00022188,2]
[311796269,1705404642784,-2446.97449234,0.00022188,2]
[311796270,1705404642795,-313.10995,0.00022188,2]
[311796271,1705404642817,-6897.53049954,0.00022188,2]
[311796272,1705404642829,-1287.23065248,0.00022188,2]
[311796273,1705404642841,-264.96451937,0.00022188,2]
[311796274,1705404642881,-12064.60584999,0.00022188,2]
[311796275,1705404642892,-1567.6451953,0.00022188,2]
[311796276,1705404642942,-3444.28202626,0.00022188,2]
[311796277,1705404643005,-292.55581077,0.00022188,2]
[311796278,1705404643017,-500.0,0.00022188,2]
[311796280,1705404645700,-252.91265999,0.00022188,2]
[311796283,1705404645766,-2528.79999997,0.00022188,2]
[311796284,1705404645778,-18696.49766116,0.00022188,2]
[311796285,1705404645790,-130884.6027709,0.00022188,2]
[311796287,1705404676632,539.92,0.00021675,2]
[311796288,1705404713875,161.63,0.00021888,2]
[311796289,1705404740877,418.31655925,0.00021831,2]
[311796290,1705404762606,198.74,0.00019744,2]
[311796291,1705404762841,198.74,0.00022008,2]
[311796292,1705404821188,176.67,0.00021718,2]
[311796293,1705404857295,1359.85,0.00021902,2]
[311796294,1705404862728,150.0,0.00021672,2]
[311796295,1705404870001,500.36,0.00021736,2]
[311796296,1705404951659,26.35630077,0.00021997,2]
[311796297,1705404951683,129.69091136,0.00021997,2]
[311796298,1705404963622,151.50793319,0.00021997,2]
[311796299,1705404995505,157.45,0.00021804,2]
[311796300,1705405032640,150.0,0.0002164,2]
[311796301,1705405032661,140.03,0.0002164,2]
[311796302,1705405034727,150.0,0.00021997,2]
[311796303,1705405034748,150.0,0.00021997,2]
[311796304,1705405034769,150.0,0.00021997,2]
[311796305,1705405034790,63.26,0.00021997,2]
[311796306,1705405047529,150.0,0.00021997,2]
[311796307,1705405099014,150.0,0.0002162,2]
[311796308,1705405099036,52.22,0.0002162,2]
[311796309,1705405100750,97.78,0.00021997,2]
[311796310,1705405100771,115.099999,0.00021997,2]
[311796311,1705405115837,150.0,0.00021997,2]
[311796312,1705405117092,150.0,0.00021728,2]
[311796313,1705405117113,5.96,0.00021728,2]
[311796314,1705405131517,568.06,0.00021623,2]
[311796315,1705405148229,150.0,0.00018342,2]
[311796316,1705405148252,37.0,0.00018342,2]
[311796317,1705405197905,2000.0,0.00021606,2]
[311796318,1705405206211,150.0,0.00019676,2]
[311796319,1705405206235,53.93,0.00019676,2]
[311796320,1705405206623,96.07,0.0002194,2]
[311796321,1705405206645,107.86,0.0002194,2]
[311796322,1705405296544,150.0,0.00021793,2]
[311796323,1705405296566,150.0,0.00021793,2]
[311796324,1705405296588,15.44,0.00021793,2]
[311796325,1705405330621,150.0,0.00021392,2]
[311796326,1705405330650,150.0,0.00021392,2]
[311796327,1705405330676,150.0,0.00021392,2]
[311796328,1705405330696,150.0,0.00021392,2]
[311796329,1705405330716,150.0,0.00021392,2]
[311796330,1705405330737,176.12908964,0.00021392,2]
[311796331,1705405330759,478.87444129,0.00021392,2]
[311796332,1705405330935,1405.00353093,0.00021757,2]
[311796333,1705405354157,500.0,0.00021575,2]
[311796334,1705405360182,150.0,0.00021575,2]
[311796335,1705405360203,25.79,0.00021575,2]
[311796336,1705405406096,-150.0,0.00022042,2]
[311796337,1705405406132,150.0,0.00021995,2]
[311796338,1705405416095,200.0,0.00021553,2]
[311796339,1705405456706,1405.00353093,0.00021905,2]
[311796340,1705405480628,500.0,0.00021559,2]
[311796341,1705405488303,298.47,0.00021575,2]
[311796342,1705405516034,250.0,0.00021549,2]
[311796343,1705405516144,2506.23,0.00021549,2]
[311796344,1705405533900,206.0,0.00021244,2]
[311796345,1705405536235,-150.0,0.00022043,2]
[311796346,1705405536255,-300.0,0.00022043,2]
[311796347,1705405536274,-150.0,0.0002211,2]
[311796348,1705405536295,-300.0,0.00022134,2]
[311796349,1705405536317,-150.0,0.00022134,2]
[311796350,1705405536338,-3193.48247001,0.00022134,2]
[311796351,1705405536357,-763.59853721,0.00022135,2]
[311796352,1705405536378,-763.59853721,0.00022135,2]
[311796353,1705405536398,-6725.12354515,0.00022135,2]
[311796354,1705405540959,156.47,0.00021756,2]
[311796355,1705405541136,156.47,0.00021982,2]
[311796356,1705405558891,2244.71903516,0.00021831,2]
[311796357,1705405587526,153.17,0.00021579,2]
[311796358,1705405613115,545.55,0.00021575,2]
[311796359,1705405633712,352.34,0.00021996,2]
[311796360,1705405646797,23900.0,0.00021579,2]
[311796362,1705405719348,1532.6777099,0.00021966,2]
[311796363,1705405719393,163.52,0.00021775,2]
[311796364,1705405728173,204.65,0.00019643,2]
[311796365,1705405728381,204.65,0.00021907,2]
[311796366,1705405755543,165.35,0.00021561,2]
[311796367,1705405764030,150.0,0.00021938,2]
[311796368,1705405778670,150.0,0.00021864,2]
[311796369,1705405779143,278.97740135,0.00021871,2]
[311796371,1705405832738,-302.89604569,0.00022041,2]
[311796372,1705405832748,-150.0,0.00022099,2]
[311796373,1705405832757,-150.0,0.00022106,2]
[311796374,1705405832767,-150.0,0.00022109,2]
[311796375,1705405832779,-147.10395431,0.0002211,2]
[311796376,1705405832792,-155.16645829,0.0002211,2]
[311796377,1705405832801,-184.0,0.00022137,2]
[311796378,1705405832810,-7865.36044947,0.00022137,2]
[311796379,1705405832826,-5453.94569491,0.00022137,2]
[311796380,1705405832839,-513.87993574,0.00022137,2]
[311796381,1705405832850,-280.56667432,0.00022137,2]
[311796382,1705405832866,-263.41331257,0.00022137,2]
[311796383,1705405832896,-3913.48766295,0.00022137,2]
[311796384,1705405832911,-6035.59806615,0.00022137,2]
[311796385,1705405832922,-16994.06434872,0.00022137,2]
[311796386,1705405832932,-41223.13438254,0.00022188,2]
[311796387,1705405832944,-11359.00109797,0.00022188,2]
[311796388,1705405832956,-1486.43739774,0.00022188,2]
[311796389,1705405832968,-300.0,0.00022188,2]
[311796390,1705405832979,-345.15536232,0.00022188,2]
[311796391,1705405833000,-384.86813329,0.00022188,2]
[311796392,1705405833012,-303.77486671,0.00022188,2]
[311796393,1705405833027,-700.0,0.00022188,2]
[311796394,1705405833038,-490.97238354,0.00022188,2]
[311796395,1705405833066,-6030.08991734,0.00022188,2]
[311796396,1705405833077,-319.28,0.00022188,2]
[311796397,1705405833117,-287.90483904,0.00022188,2]
[311796398,1705405833128,-6721.71,0.00022188,2]
[311796399,1705405833152,-4044.59662241,0.00022188,2]
[311796400,1705405833164,-12792.4382685,0.00022188,2]
[311796456,1705405838167,-870.5037117,0.00022188,2]
[311796458,1705405838263,-25790.61242364,0.00022188,2]
[311796462,1705405838292,-590.18551452,0.00022188,2]
[311796463,1705405838304,-1555.62108373,0.00022188,2]
[311796464,1705405838328,-502.29002114,0.00022188,2]
[311796465,1705405838347,-2979.95671236,0.00022188,2]
[311796468,1705405840327,-1250.0,0.00022188,2]
[311796469,1705405840339,-4497.08283176,0.00022188,2]
[311796470,1705405840351,-4565.59708068,0.00022188,2]
[311796471,1705405840365,-1077.90737023,0.00022198,2]
[311796472,1705405840374,-156.47,0.00022209,2]
[311796473,1705405840384,-158.92,0.00022242,2]
[311796474,1705405840393,-300.0,0.00022398,2]
[311796475,1705405840403,-150.0,0.00022398,2]
[311796476,1705405840412,-157.95934827,0.00022399,2]
[311796477,1705405840422,-499.99,0.00022408,2]
[311796478,1705405840441,-1000.0,0.00022423,2]
[311796479,1705405840462,-387.38,0.00022423,2]
[311796480,1705405840474,-158.92,0.00022424,2]
[311796481,1705405840485,-157.95934813,0.00022435,2]
[311796482,1705405840495,-150.99,0.00022436,2]
[311796483,1705405840506,-156.47,0.00022436,2]
[311796484,1705405840516,-1042.70714666,0.00022443,2]
[311796485,1705405841029,-28.13235334,0.00022443,2]
[311796486,1705405841043,-510.21027245,0.00022465,2]
[311796548,1705405846822,-894.79325848,0.00022465,2]
[311796549,1705405846833,-157.95934813,0.0002247,2]
[311796550,1705405846844,-2213.22739339,0.000225,2]
[311796551,1705405846939,-278.70145478,0.000225,2]
[311796552,1705405857592,175.79,0.00021732,2]
[311796553,1705405858211,-12322.35791783,0.000225,2]
[311796554,1705405858233,-1000.0,0.000225,2]
[311796555,1705405858255,-1000.0,0.000225,2]
[311796556,1705405858277,-31041.1934,0.000225,2]
[311796557,1705405858300,-157.95934813,0.00022541,2]
[311796558,1705405858321,-1000.0,0.00022543,2]
[311796559,1705405858343,-26599.7708,0.00022543,2]
[311796560,1705405858367,-298.47,0.00022553,2]
[311796561,1705405858389,-157.95934813,0.00022577,2]
[311796562,1705405858410,-428.39082987,0.000226,3]
[311796563,1705405858431,-940.88,0.000226,2]
[311796564,1705405858452,-401.54,0.000226,2]
[311796565,1705405858473,-272.86,0.000226,2]
[311796566,1705405858495,-401.54,0.000226,2]
[311796567,1705405858517,-401.54,0.000226,2]
[311796568,1705405858539,-401.54,0.000226,2]
[311796569,1705405858561,-399.92,0.000226,2]
[311796570,1705405858582,-150.0,0.000226,2]
[311796571,1705405858605,-158.92,0.00022607,2]
[311796572,1705405858627,-157.95934813,0.00022612,2]
[311796573,1705405858650,-715.21,0.00022623,2]
[311796574,1705405858672,-558.15325618,0.00022627,2]
[311796575,1705405858695,-730.0,0.00022635,2]
[311796576,1705405858718,-710.02,0.00022643,2]
[311796577,1705405858742,-81486.352,0.00022643,2]
[311796578,1705405858764,-305.4027,0.00022643,2]
[311796579,1705405858787,-157.95934813,0.00022648,2]
[311796580,1705405858812,-156.47,0.00022663,2]
[311796581,1705405858833,-503.91173672,0.00022667,2]
[311796582,1705405858855,-157.95934813,0.00022684,2]
[311796583,1705405858877,-2716.0,0.000227,2]
[311796584,1705405858900,-27508.0,0.000227,2]
[311796585,1705405858922,-940.88,0.000227,2]
[311796586,1705405858946,-401.54,0.000227,2]
[311796587,1705405858967,-940.88,0.000227,2]
[311796588,1705405858990,-157.95934813,0.00022719,2]
[311796589,1705405859014,-940.73042275,0.00022741,2]
[311796590,1705405859037,-1180.65263542,0.00022741,2]
[311796591,1705405859061,-181.37185883,0.00022741,2]
[311796592,1705405859084,-225.37162926,0.00022741,2]
[311796593,1705405859108,-11851.12943349,0.00022741,2]
[311796594,1705405859131,-3622.65090345,0.00022741,2]
[311796595,1705405859153,-411.05589244,0.00022742,2]
[311796596,1705405859179,-16653.39429515,0.00022743,2]
[311796597,1705405859202,-7228.86524046,0.00022743,2]
[311796598,1705405859226,-15953.51786336,0.00022743,2]
[311796599,1705405859253,-3821.48293386,0.00022743,2]
[311796600,1705405859278,-14093.22650438,0.00022743,2]
[311796601,1705405859304,-200000.0,0.00022743,2]
[311796602,1705405859329,-8835.31706819,0.00022743,2]
[311796603,1705405859353,-157.95934813,0.00022755,2]
[311796604,1705405859377,-161.0,0.00022766,2]
[311796605,1705405859402,-158.92,0.00022789,2]
[311796606,1705405859425,-157.95934813,0.0002279,2]
[311796607,1705405859448,-178.10432634,0.000228,2]
[311796608,1705405859471,-588.0,0.000228,2]
[311796609,1705405859493,-401.54,0.000228,2]
[311796610,1705405859515,-200.0,0.00022812,2]
[311796611,1705405859538,-800.0,0.00022812,2]
[311796612,1705405859561,-157.95934813,0.00022826,2]
[311796613,1705405859583,-157.95934813,0.00022861,2]
[311796614,1705405859605,-10686.23608874,0.0002288,2]
[311796615,1705405859630,-156.47,0.00022889,2]
[311796616,1705405859653,-503.91173671,0.00022896,2]
[311796617,1705405859676,-157.95934813,0.00022897,2]
[311796618,1705405859699,-4385.99746958,0.00022898,2]
[311796619,1705405859721,-178.39817792,0.00022898,2]
[311796620,1705405859744,-4385.99746952,0.00022898,2]
[311796621,1705405859768,-4385.99746952,0.00022898,2]
[311796622,1705405859792,-4385.99746952,0.00022899,2]
[311796623,1705405859815,-4385.99746952,0.00022899,2]
[311796624,1705405859838,-4385.99746952,0.00022899,2]
[311796625,1705405859859,-4385.99746952,0.00022899,2]
[311796626,1705405859881,-4385.99746952,0.00022899,2]
[311796627,1705405859906,-4385.99746952,0.00022899,2]
[311796628,1705405859927,-4385.99746952,0.000229,2]
[311796629,1705405859950,-4385.99746952,0.000229,2]
[311796630,1705405859971,-371.0,0.000229,2]
[311796631,1705405859992,-91339.5236904,0.000229,2]
[311796632,1705405860014,-4385.99746952,0.000229,2]
[311796633,1705405860035,-16.86419452,0.000229,2]
[311796635,1705405864046,1326.45160994,0.00021831,2]
[311796636,1705405944185,4940.83711901,0.00022,3]
[311796637,1705405956566,150.0,0.00021731,2]
[311796638,1705405974719,248.86,0.00021894,2]
[311796639,1705405974920,248.86,0.00021954,2]
[311796640,1705405976861,150.0,0.00015,2]
[311796641,1705405984060,3182.01197305,0.00021693,2]
[311796642,1705406013646,-1255.79384089,0.00022012,2]
[311796643,1705406013668,-1045.04040933,0.00022013,2]
[311796644,1705406013692,-651.41875051,0.00022013,2]
[311796645,1705406013715,-248.86,0.00022014,2]
[311796646,1705406013741,-248.86,0.00022074,2]
[311796647,1705406013763,-248.86,0.00022134,2]
[311796648,1705406013784,-5850.58622771,0.00022186,2]
[311796649,1705406013807,-155.0,0.00022188,2]
[311796650,1705406013829,-248.86,0.00022194,2]
[311796651,1705406013850,-248.86,0.00022255,2]
[311796652,1705406013874,-248.86,0.00022315,2]
[311796653,1705406013896,-248.86,0.00022375,2]
[311796654,1705406013918,-1557.3093,0.000224,2]
[311796655,1705406013941,-248.86,0.00022435,2]
[311796656,1705406013965,-248.86,0.00022495,2]
[311796657,1705406013989,-150.0,0.00022496,2]
[311796658,1705406014011,-736.96,0.000225,2]
[311796659,1705406014033,-288.108,0.000225,2]
[311796660,1705406014991,155.0,0.00022011,2]
[311796661,1705406015137,331.94601953,0.000225,2]
[311796662,1705406019806,438.31,0.00021751,2]
[311796663,1705406020421,167.59950278,0.00022086,2]
[311796664,1705406031789,3130.64103351,0.00021467,2]
[311796666,1705406071112,15558.41,0.00021702,2]
[311796667,1705406072063,150.0,0.00021996,2]
[311796669,1705406074026,2000.0,0.00021704,2]
[311796670,1705406082125,563.56,0.00021704,2]
[311796671,1705406095900,3574.57691574,0.00022499,2]
[311796672,1705406106910,10666.44,0.00021684,2]
[311796673,1705406120362,159.84,0.00021676,2]
[311796674,1705406120596,159.84,0.00021947,2]
[311796675,1705406140412,150.0,0.00021992,2]
[311796676,1705406196265,157.39,0.00021795,2]
[311796677,1705406228138,150.0,0.000218,2]
[311796678,1705406233131,214.41,0.00019657,2]
[311796679,1705406233357,214.41,0.00021921,2]
[311796680,1705406271766,176.23,0.000218,2]
[311796681,1705406295713,883.93852646,0.00021795,2]
[311796682,1705406298998,164.39,0.00021558,2]
[311796683,1705406304471,3185.21463735,0.00021693,2]
[311796685,1705406305161,150.0,0.00022,2]
[311796686,1705406306063,224.62,0.00021558,2]
[311796687,1705406308039,4109.36308953,0.000218,2]
[311796688,1705406314434,845.481875,0.000218,2]
[311796689,1705406316311,1876.78783194,0.000218,2]
[311796690,1705406324386,175.79,0.00021558,2]
[311796691,1705406325764,204.37647095,0.00022,2]
[311796692,1705406331240,3195.18174134,0.00022,2]
[311796693,1705406341716,455.9659701,0.000218,2]
[311796695,1705406356415,844.79621877,0.000218,2]
[311796696,1705406373292,150.0,0.00022,2]
[311796697,1705406441787,4408.29,0.00021534,2]
[311796700,1705406465501,159.98,0.00021698,2]
[311796701,1705406465712,159.98,0.00021785,2]
[311796702,1705406465934,159.98,0.00021872,2]
[311796703,1705406466249,159.98,0.00021959,2]
[311796705,1705406478023,423.21,0.00021506,2]
[311796708,1705406557279,150.71,0.0002152,2]
[311796709,1705406579016,150.0,0.0002152,2]
[311796711,1705406613738,205.0,0.00021473,2]
[311796712,1705406651053,549.15,0.00021517,2]
[311796719,1705406706537,204.29,0.00019599,2]
[311796720,1705406706735,204.29,0.00021863,2]
[311796723,1705406728693,157.12,0.00021732,2]
[311796724,1705406755841,301.30782257,0.00021863,2]
[311796725,1705406756086,-384.10454389,0.00022045,2]
[311796726,1705406756107,-158.61995858,0.00022045,2]
[311796727,1705406756129,-159.98,0.00022046,2]
[311796728,1705406756410,-159.98,0.00022133,2]
[311796729,1705406756432,-448.32516511,0.000222,2]
[311796730,1705406778287,224.62,0.0002154,2]
[311796732,1705406853862,250.0,0.00021526,2]
[311796735,1705406869510,50549.20206168,0.0002154,2]
[311796736,1705406891495,391.3116588,0.0002154,2]
[311796737,1705406896440,351.48,0.00021742,2]
[311796739,1705406919961,158.06,0.00021688,2]
[311796740,1705406920372,158.06,0.00021813,2]
[311796741,1705406921262,158.06,0.00021939,2]
[311796745,1705406934731,431.38,0.00021525,2]
[311796757,1705407031999,-158.61995858,0.00022064,2]
[311796760,1705407032009,-139.58004142,0.00022065,2]
[311796761,1705407032055,-18.47995858,0.00022065,2]
[311796762,1705407032064,-266.70360583,0.00022118,2]
[311796763,1705407032074,-158.06,0.0002219,2]
[311796764,1705407032084,-51.67483489,0.000222,2]
[311796765,1705407032094,-6.9816007,0.000222,2]
[311796766,1705407032109,-443.0183993,0.000222,2]
[311796767,1705407032119,-321.32992054,0.000222,2]
[311796768,1705407032131,-804.60301335,0.000222,2]
[311796769,1705407032159,-499.05471673,0.000222,2]
[311796770,1705407032171,-131.78138591,0.000222,2]
[311796771,1705407032181,-396.78919521,0.00022216,2]
[311796772,1705407032193,-37.12948885,0.00022216,2]
[311796773,1705407032203,-159.84,0.00022218,2]
[311796774,1705407032217,-158.06,0.00022316,2]
[311796775,1705407032228,-376.97782648,0.00022345,2]
[311796776,1705407032241,-1316.20749776,0.00022345,2]
[311796777,1705407032254,-17314.95990894,0.00022345,2]
[311796778,1705407032263,-150.0,0.00022346,2]
[311796779,1705407032274,-150.0,0.00022346,2]
[311796780,1705407032285,-503.69673593,0.00022348,2]
[311796781,1705407032298,-3073.48574326,0.00022348,2]
[311796782,1705407032315,-1662.83752081,0.00022348,2]
[311796783,1705407032327,-308.6062257,0.00022394,2]
[311796834,1705407033105,-575.8337743,0.00022394,2]
[311796835,1705407033115,-153.91768711,0.00022398,2]
[311796836,1705407033123,-158.06,0.00022441,2]
[311796837,1705407033132,-713.67,0.00022479,2]
[311796838,1705407033141,-2494.1402443,0.00022488,2]
[311796839,1705407033154,-2510.75568797,0.00022488,2]
[311796840,1705407033163,-159.84,0.00022489,2]
[311796841,1705407033172,-565.85680371,0.00022497,2]
[311796842,1705407033184,-169.11319629,0.00022497,2]
[311796843,1705407033193,-133.56086741,0.00022499,2]
[311796844,1705407033442,-30559.20431204,0.00022499,2]
[311796846,1705407038779,-3.36372055,0.00022499,2]
[311796847,1705407038788,-299.68306206,0.00022499,2]
[311796848,1705407038817,-18.79193794,0.00022499,2]
[311796849,1705407038827,-326.39,0.000225,2]
[311796850,1705407038837,-312.37603356,0.000225,2]
[311796851,1705407038846,-333.26375507,0.000225,2]
[311796852,1705407038856,-431.38,0.00022504,2]
[311796853,1705407038865,-718.34,0.00022513,2]
[311796854,1705407038874,-493.68361252,0.00022514,2]
[311796855,1705407038883,-731.52,0.00022514,2]
[311796856,1705407038892,-730.33,0.00022515,2]
[311796857,1705407038901,-727.16,0.00022519,2]
[311796858,1705407038910,-312.3760335,0.00022557,2]
[311796859,1705407038919,-158.06,0.00022567,2]
[311796860,1705407038928,-150.0,0.00022587,2]
[311796861,1705407038938,-177.67596944,0.0002259,2]
[311796862,1705407038947,-150.0,0.00022591,2]
[311796863,1705407038956,-150.0,0.00022594,2]
[311796864,1705407038966,-508.54409063,0.00022597,3]
[311796865,1705407038975,-184.65249435,0.00022597,2]
[311796866,1705407038984,-1041.95270537,0.00022597,2]
[311796867,1705407038993,-155.46805855,0.00022597,2]
[311796868,1705407039004,-711.49718173,0.00022597,2]
[311796869,1705407039013,-205.50143042,0.00022597,2]
[311796870,1705407039023,-3242.89715255,0.00022597,2]
[311796871,1705407039033,-371.21855219,0.00022597,2]
[311796872,1705407039042,-700.24680694,0.00022597,2]
[311796873,1705407039052,-682.66776446,0.00022597,2]
[311796874,1705407039062,-155.32153028,0.00022597,2]
[311796875,1705407039071,-244.64133608,0.00022597,2]
[311796876,1705407039081,-155.0,0.00022597,2]
[311796877,1705407039090,-223.68887622,0.00022597,2]
[311796878,1705407039100,-1247.7264509,0.00022597,2]
[311796879,1705407039109,-453.0,0.00022597,2]
[311796880,1705407039119,-410.19903303,0.00022597,2]
[311796881,1705407039128,-1108.941404,0.00022598,2]
[311796882,1705407039137,-1174.57417902,0.00022598,2]
[311796883,1705407039146,-4130.95319536,0.00022598,2]
[311796884,1705407039156,-150.0,0.00022598,2]
[311796885,1705407039165,-300.62032364,0.00022599,2]
[311796886,1705407039174,-384415.53476662,0.00022599,2]
[311796887,1705407039184,-219360.4671,0.000226,2]
[311796888,1705407039194,-1000.0,0.000226,2]
[311796889,1705407039203,-150.0,0.000226,2]
[311796890,1705407039213,-300.0,0.000226,2]
[311796891,1705407039222,-408.4,0.000226,2]
[311796892,1705407039231,-150.0,0.000226,2]
[311796893,1705407039241,-314.46,0.000226,2]
[311796894,1705407039250,-418.24,0.000226,2]
[311796895,1705407039260,-408.4,0.000226,2]
[311796896,1705407039269,-161.96,0.000226,2]
[311796897,1705407039278,-314.46,0.000226,2]
[311796898,1705407039288,-418.24,0.000226,2]
[311796899,1705407039297,-418.24,0.000226,2]
[311796900,1705407039307,-314.46,0.000226,2]
[311796901,1705407039316,-418.24,0.000226,2]
[311796902,1705407039326,-314.46,0.000226,2]
[311796903,1705407039336,-314.46,0.000226,2]
[311796904,1705407039346,-417.52,0.000226,2]
[311796905,1705407039355,-314.46,0.000226,2]
[311796906,1705407039364,-387.94,0.000226,2]
[311796907,1705407039374,-294.22,0.000226,2]
[311796908,1705407039383,-226.25,0.000226,2]
[311796909,1705407039392,-150.0,0.00022602,2]
[311796910,1705407039402,-150.0,0.00022605,2]
[311796911,1705407039411,-150.0,0.00022607,2]
[311796912,1705407039421,-150.0,0.0002261,2]
[311796913,1705407039431,-236.64751484,0.00022611,2]
[311796914,1705407039440,-312.3760335,0.00022614,2]
[311796915,1705407039450,-150.0,0.00022615,2]
[311796916,1705407039459,-150.0,0.00022618,2]
[311796917,1705407039469,-279.00928598,0.00022641,2]
[311796918,1705407039479,-292.35479802,0.00022641,2]
[311796919,1705407039489,-150.21386036,0.00022641,2]
[311796920,1705407039499,-267.11860865,0.00022641,2]
[311796921,1705407039509,-982.40308415,0.00022641,2]
[311796922,1705407039519,-333.26375507,0.00022641,2]
[311796923,1705407039529,-28173.5857,0.00022641,2]
[311796924,1705407039538,-500.0,0.00022643,2]
[311796925,1705407039548,-1000.0,0.00022643,2]
[311796926,1705407039557,-150.0,0.0002265,2]
[311796927,1705407039567,-800.0,0.00022658,2]
[311796928,1705407039579,-150.0,0.00022661,2]
[311796929,1705407039588,-150.0,0.00022664,2]
[311796930,1705407039598,-150.0,0.00022665,2]
[311796931,1705407039608,-312.3760335,0.00022671,2]
[311796932,1705407039617,-150.0,0.00022675,2]
[311796933,1705407039627,-150.0,0.00022678,2]
[311796934,1705407039636,-150.0,0.00022681,2]
[311796935,1705407039646,-150.0,0.00022688,2]
[311796936,1705407039656,-158.06,0.00022692,2]
[311796937,1705407039665,-213.35248516,0.00022699,2]
[311796938,1705407039675,-2764.0,0.000227,2]
[311796939,1705407039685,-150.0,0.000227,2]
[311796940,1705407039695,-28489.0,0.000227,2]
[311796941,1705407039705,-150.0,0.000227,2]
[311796942,1705407039715,-628.92,0.000227,2]
[311796943,1705407039725,-408.4,0.000227,2]
[311796944,1705407039735,-150.0,0.00022708,2]
[311796945,1705407039746,-150.0,0.00022717,2]
[311796946,1705407039755,-150.0,0.00022718,2]
[311796947,1705407039765,-215.35384188,0.00022718,2]
[311796948,1705407039775,-150.0,0.0002272,2]
[311796949,1705407039784,-150.0,0.00022724,2]
[311796950,1705407039794,-150.0,0.00022727,2]
[311796951,1705407039803,-150.0,0.00022728,2]
[311796952,1705407039813,-312.3760335,0.00022729,2]
[311796953,1705407039823,-2610577.29742549,0.00022741,2]
[311796954,1705407039833,-263.28882088,0.00022741,2]
[311796955,1705407039842,-223.46791397,0.00022741,2]
[311796956,1705407039852,-161.94528276,0.00022741,2]
[311796957,1705407039863,-13758.40676925,0.00022741,2]
[311796958,1705407039873,-155.48269807,0.00022741,2]
[311796959,1705407039883,-2888.71602637,0.00022741,2]
[311796960,1705407039894,-500.89319127,0.00022741,2]
[311796961,1705407039906,-765.15731892,0.00022741,2]
[311796962,1705407039916,-386.61135731,0.00022741,2]
[311796963,1705407039927,-155.0,0.00022741,2]
[311796964,1705407039936,-526.14369271,0.00022741,2]
[311796965,1705407039947,-155.0,0.00022741,2]
[311796966,1705407039957,-522.36940647,0.00022741,2]
[311796967,1705407039967,-542.3479697,0.00022741,2]
[311796968,1705407039977,-155.0,0.00022741,2]
[311796969,1705407039986,-284.94387403,0.00022741,2]